[Event "1000GM 0003 GM Norm 2022"]
[Site "Saint Louis"]
[Date "2022.09.23"]
[Round "4.4"]
[White "Chandra, Akshat"]
[Black "Williams, Justus"]
[Result "1-0"]
[ECO "C54"]
[WhiteElo "2471"]
[BlackElo "2392"]
[Annotator "TA"]
[PlyCount "55"]
[EventDate "2022.09.21"]
[EventType "tourn"]
[EventCountry "USA"]
[SourceTitle "playchess.com"]
[Source "ChessBase"]
[SourceQuality "1"]
[TimeControl "5400+30"]

{[%evp 11,55,11,18,15,32,15,24,27,26,16,18,26,22,-8,-1,-2,23,36,42,20,56,59,70,81,157,162,160,156,306,303,596,598,514,247,828,797,899,382,377,374,5102,4816,3439,3045,2543,2331]} 1. e4 {[%emt 0:00:30]} e5 {[%emt 0:08:21]} 2. Nf3 {[%emt 0:00:00]} Nc6 {[%emt 0:00:10]} 3. Bc4 {[%emt 0:00:00]} Bc5 {[%emt 0:00:17]} 4. c3 {[%emt 0:00:29]} Nf6 {[%emt 0:00:41]} 5. d3 {[%emt 0:00:07]} d6 {[%emt 0:00:39]} 6. O-O {[%emt 0:00:44]} a6 {[%emt 0:02:11]} 7. a4 {[%emt 0:00:41] C54: Giuoco Piano: 4 c3 Nf6, main lines with 5 d4 and 5 d3.} Ba7 {[%emt 0:00:42]} 8. Re1 {[%emt 0:00:55]} h6 {[%emt 0:02:29]} 9. Nbd2 {[%emt 0:00:32] White has an edge.} O-O {[%emt 0:02:49]} 10. h3 {[%emt 0:01:05]} Re8 {[%emt 0:01:21]} 11. b4 $1 {[%emt 0:01:50] 11.b4 scores better than 11.Nf1.} Ne7 {[%emt 0:02:57]} 12. Nf1 {[%emt 0:30:15]} (12. Qb3 $5 {[%cal Rc4f7]}) 12... Ng6 {[%emt 0:02:21]} 13. Ng3 {[%emt 0:01:52]} Be6 {[%emt 0:02:41]} 14. Bxe6 {[%emt 0:00:12]} Rxe6 {[%emt 0:00:44] [#]} 15. c4 $146 {[%emt 0:00:40] Against d5} ({Predecessor:} 15. d4 Qd7 16. d5 Ree8 17. a5 c6 18. c4 cxd5 19. cxd5 Rac8 20. Qd3 Rc7 21. Bd2 {1-0 (71) Vachier Lagrave,M (2796)-Carlsen,M (2832) Paris 2017}) 15... a5 {[%emt 0:08:21]} 16. bxa5 {[%emt 0:02:12]} Nd7 {[%emt 0:02:15]} 17. Rb1 {[%emt 0:01:59]} Nh4 {[%emt 0:09:14]} (17... b6 $142) 18. Nxh4 $16 {[%emt 0:12:55]} (18. Rxb7 Nxf3+ 19. Qxf3 Bd4 $16) 18... Qxh4 {[%emt 0:00:10] [#]} 19. Nf5 {[%emt 0:03:43]} Qxf2+ {[%emt 0:03:12]} (19... Qd8 $16 20. Rxb7 Bd4) 20. Kh2 $18 {[%emt 0:07:27]} Kh7 $2 {[%emt 0:05:28]} (20... Rg6 21. Ne7+ Kh7 22. Nxg6 fxg6 23. Rxb7 Qc5) 21. Rf1 {[%emt 0:03:29]} Qc5 {[%emt 0:02:32]} 22. Rxb7 {[%emt 0:02:48]} (22. Qh5 $142 Rf6 23. Rxb7) 22... Qc6 $2 {[%emt 0:04:52] [#]} (22... Nf6 23. Bd2 Qc6) 23. Rxa7 $1 {[%emt 0:11:16][%mdl 512]} Rxa7 {[%emt 0:00:49] [#]} (23... Nf6 24. Rxa8) 24. Qg4 {[%emt 0:00:03]} (24. Bxh6 $142 $1 {[%mdl 512]} gxh6 (24... g6 25. Qg4) 25. Qh5) 24... Rg6 {[%emt 0:07:10]} 25. Ne7 {[%emt 0:00:10][%csl LRc6,LRf7,LRg6][%mdl 64] Strongly threatening Qf5. Discovered Attack, Double Attack} Qxa4 $2 {[%emt 0:02:10]} (25... Rxg4 26. Nxc6 Ra6) 26. Nxg6 {[%emt 0:00:06] White is clearly winning.} fxg6 {[%emt 0:00:06]} 27. Rf7 {[%emt 0:08:18] Intending Bxh6 and mate.} Nc5 {[%emt 0:15:41]} 28. Qc8 {[%emt 0:06:54] Weighted Error Value: White=0.40/Black=0.61} 1-0

[Event "1000GM 0003 GM Norm 2022"]
[Site "Saint Louis"]
[Date "2022.09.23"]
[Round "4.5"]
[White "Kretchetov, Alexandre"]
[Black "Mardov, Dimitar"]
[Result "1/2-1/2"]
[ECO "D37"]
[WhiteElo "2144"]
[BlackElo "2414"]
[Annotator "TA"]
[PlyCount "84"]
[EventDate "2022.09.21"]
[EventType "tourn"]
[EventCountry "USA"]
[SourceTitle "playchess.com"]
[Source "ChessBase"]
[SourceQuality "1"]
[TimeControl "5400+30"]

{[%evp 13,84,20,25,10,6,10,13,12,24,20,24,27,39,39,57,60,62,23,65,37,46,45,70,52,54,50,24,10,181,150,150,150,152,163,160,160,163,163,157,160,157,157,158,145,145,145,148,141,146,137,134,120,120,117,167,164,225,175,295,120,120,99,99,144,141,0,0,0,0,0,95,-735,1458]} 1. Nf3 {[%emt 0:03:54]} d5 {[%emt 0:00:25]} 2. d4 {[%emt 0:00:11]} Nf6 {[%emt 0:00:14]} 3. c4 {[%emt 0:00:17]} e6 {[%emt 0:00:10]} 4. Nc3 {[%emt 0:00:04]} Be7 {[%emt 0:00:59]} 5. Bf4 {[%emt 0:00:33]} O-O {[%emt 0:00:14]} 6. e3 {[%emt 0:00:02]} b6 {[%emt 0:01:08]} 7. Rc1 {[%emt 0:03:30]} Bb7 {[%emt 0:01:29]} 8. cxd5 {[%emt 0:01:38] D37: Queen's Gambit Declined: 5 Bf4.} Nxd5 {[%emt 0:06:19]} 9. Nxd5 {[%emt 0:00:09]} Qxd5 {[%emt 0:00:14]} 10. a3 {[%emt 0:00:06] Prevents Bb4+. The position is equal.} (10. Bxc7 Bb4+ 11. Nd2 Qxa2 $15) 10... Bd6 {[%emt 0:04:03]} 11. Bxd6 {[%emt 0:05:54]} cxd6 {[%emt 0:01:52]} 12. Bd3 {[%emt 0:10:44]} Nc6 {[%emt 0:06:07]} 13. O-O {[%emt 0:02:45]} Rfc8 {[%emt 0:01:49] [#]} 14. e4 $146 {[%emt 0:05:39]} ({Predecessor:} 14. Qe2 Ne7 15. Ba6 h6 16. Bxb7 Qxb7 17. Nd2 Nf5 18. Qd3 d5 19. a4 Rc7 20. Rxc7 Qxc7 {0-1 (56) Xu,H (2290)-Wu,W (2535) Wuxi 2005}) 14... Qh5 {[%emt 0:03:18]} 15. Qe2 {[%emt 0:05:30]} a6 {[%emt 0:15:02]} 16. h3 {[%emt 0:06:13]} b5 {[%emt 0:01:06]} 17. Qd2 {[%emt 0:03:06]} Kh8 {[%emt 0:12:31]} 18. Rc2 {[%emt 0:07:04]} f6 {[%emt 0:03:15]} 19. Rfc1 {[%emt 0:02:10]} Qf7 {[%emt 0:02:00]} 20. b4 {[%emt 0:05:19][%cal Oe4e5]} Rc7 $2 {[%emt 0:03:45]} (20... Qd7 $11) 21. Qf4 {[%emt 0:11:45] Threatens to win with d5.} e5 {[%emt 0:03:06]} 22. Qe3 {[%emt 0:00:10]} Rac8 {[%emt 0:11:48]} 23. d5 {[%emt 0:06:28]} Nd4 {[%emt 0:02:32]} 24. Nxd4 {[%emt 0:00:58]} exd4 {[%emt 0:00:08]} 25. Qxd4 {[%emt 0:00:34] [#] And now Qb6 would win.} Rxc2 {[%emt 0:00:21]} 26. Rxc2 {[%emt 0:00:11]} Rxc2 {[%emt 0:00:17]} 27. Bxc2 $16 {[%emt 0:00:02][%mdl 4096] Endgame KQB-KQB} Qc7 {[%emt 0:00:18] Prevents Qb6.} 28. Qd3 {[%emt 0:02:18][%cal Oe4e5] e5! is the strong threat.} g6 {[%emt 0:01:08]} 29. h4 {[%emt 0:01:29]} Kg7 {[%emt 0:02:35]} 30. h5 {[%emt 0:02:17]} Bc8 {[%emt 0:01:33]} 31. hxg6 {[%emt 0:00:54]} hxg6 {[%emt 0:00:36]} 32. Kh2 {[%emt 0:03:08]} Bd7 {[%emt 0:03:55]} 33. Bd1 {[%emt 0:01:59]} Qc1 {[%emt 0:03:11]} (33... a5 $16 34. Qe3 axb4) 34. Qc2 $18 {[%emt 0:00:52]} Qh6+ {[%emt 0:05:03]} (34... Qxc2 {was worth a try.} 35. Bxc2 Kh6) 35. Kg1 {[%emt 0:00:16] Hoping for Qc7.} Kf7 {[%emt 0:01:33] [#]} (35... Kf8 $142 36. g3 (36. Qc7 Ke8 $16) 36... Qg5) 36. Qc7 {[%emt 0:00:29]} (36. e5 $1 $18 {[%cal Re5e6] and the rest is easy.} fxe5 37. Qc7) 36... Ke8 $16 {[%emt 0:00:17]} 37. g3 $36 {[%emt 0:02:27][%mdl 2048] Strongly threatening e5. White is in control. White is more active.} (37. Qxd6 $6 Qc1 $11) 37... Qd2 {[%emt 0:00:50]} 38. Bf3 {[%emt 0:00:15]} Qd3 {[%emt 0:01:05]} 39. Bg2 {[%emt 0:02:07]} ({But not} 39. Kg2 Bh3+ 40. Kxh3 Qxf3 $16) (39. Qb8+ $16 Ke7 40. Kg2) 39... Qd1+ $11 {[%emt 0:00:20]} 40. Kh2 {[%emt 0:00:20] aiming for Qb8+.} Qh5+ {[%emt 0:00:05]} 41. Kg1 {[%emt 0:00:23]} Ke7 {[%emt 0:00:04]} (41... Qd1+ $11 {keeps the balance.} 42. Kh2 (42. Bf1 Bh3 $11) 42... Qh5+ 43. Kg1 Qd1+) 42. Bf3 $2 {[%mdl 8192]} Qh6 $4 {[%emt 0:00:42][%mdl 40960] Weighted Error Value: White=0.40/Black=0.25 (precise) . An unexpected result.} (42... Qxf3 $19 43. Qb8 Qxe4) 1/2-1/2

[Event "1000GM 0003 GM Norm 2022"]
[Site "Saint Louis"]
[Date "2022.09.24"]
[Round "6.1"]
[White "Raja Harshit"]
[Black "Antipov, Mikhail Al."]
[Result "1/2-1/2"]
[WhiteElo "2459"]
[BlackElo "2603"]
[Annotator "TA"]
[PlyCount "35"]
[EventDate "2022.09.21"]
[EventType "tourn"]
[EventCountry "USA"]
[SourceTitle "playchess.com"]
[Source "ChessBase"]
[SourceQuality "1"]
[TimeControl "5400+30"]

{[%evp 13,14,-4,1]} 1. d4 {[%emt 0:00:26]} Nf6 {[%emt 0:00:02]} 2. Nf3 {[%emt 0:00:10]} d5 {[%emt 0:00:03]} 3. c4 {[%emt 0:00:08]} e6 {[%emt 0:00:03]} 4. g3 {[%emt 0:00:09]} Bb4+ {[%emt 0:00:08]} 5. Bd2 {[%emt 0:00:08]} Be7 {[%emt 0:00:05]} 6. Bg2 {[%emt 0:00:11]} O-O {[%emt 0:00:07]} 7. O-O {[%emt 0:00:08]} c6 {[%emt 0:00:04] [#]} {Predecessor:} 8. Qc2 $146 {E11: Bogo-Indian.} b6 9. Rd1 Bb7 10. b3 Nbd7 11. Nc3 Ba6 12. e4 dxc4 13. e5 Nd5 14. Ne4 c3 15. Bg5 h6 16. Bxe7 Qxe7 17. Nxc3 Nxc3 18. Qxc3 {0-1 (64) Nepomniachtchi,I (2792)-Shankland,S (2720) Saint Louis 2022} 1/2-1/2

[Event "1000GM 0003 GM Norm 2022"]
[Site "Saint Louis"]
[Date "2022.09.24"]
[Round "6.2"]
[White "Kaliksteyn, Alexander"]
[Black "Gedajlovic, Max"]
[Result "1/2-1/2"]
[ECO "D02"]
[WhiteElo "2393"]
[BlackElo "2343"]
[Annotator "TA"]
[PlyCount "50"]
[EventDate "2022.09.21"]
[EventType "tourn"]
[EventCountry "USA"]
[SourceTitle "playchess.com"]
[Source "ChessBase"]
[SourceQuality "1"]
[TimeControl "5400+30"]

{[%evp 11,50,-4,0,0,0,1,1,0,12,8,31,13,28,22,21,0,38,0,0,17,25,-20,-20,-18,-22,-10,0,0,-32,-49,-48,-52,-35,-49,-49,-80,-80,-79,-79,-77,-56]} 1. d4 {[%emt 0:00:05]} Nf6 {[%emt 0:02:59]} 2. Nf3 {[%emt 0:00:07]} e6 {[%emt 0:00:09]} 3. Bf4 {[%emt 0:00:27]} c5 {[%emt 0:00:15]} 4. e3 {[%emt 0:02:00]} d5 {[%emt 0:00:26]} 5. Nbd2 {[%emt 0:00:18]} Nc6 {[%emt 0:00:11]} 6. c3 {[%emt 0:00:22]} Nh5 $1 {[%emt 0:00:09][%mdl 4] 6...Nh5 is the modern continuation.} 7. Bg5 {[%emt 0:00:41] D02: 1 d4 d5 2 Nf3 sidelines, including 2...Nf6 3 g3 and 2...Nf6 3 Bf4.} f6 {[%emt 0:00:11]} 8. Bh4 {[%emt 0:00:05][%cal Of3e5] next Ne5! is good for White.} g6 {[%emt 0:00:07]} 9. Bd3 {[%emt 0:03:46][%cal Of3e5] The position is equal.} cxd4 {[%emt 0:00:14]} 10. cxd4 {[%emt 0:00:14][%cal Of3e5]} Be7 {[%emt 0:00:46]} 11. O-O {[%emt 0:00:12]} O-O {[%emt 0:00:08]} 12. Rc1 {[%emt 0:00:22]} Bd7 {[%emt 0:02:50]} 13. a3 {[%emt 0:16:39] [#]} Qe8 $146 {[%emt 0:00:27]} ({Predecessor:} 13... Rc8 14. Nb1 Qb6 15. Qe2 Na5 16. Nc3 Nc4 17. Bxc4 Rxc4 18. e4 dxe4 19. Qxc4 exf3 {1-0 (54) Giri,A (2785)-So,W (2815) Chess.com INT 2017}) 14. Nb3 {[%emt 0:00:56]} (14. g4 $5 {[%cal Rg4h5]} g5 15. gxh5 gxh4 16. Nxh4 $14) 14... g5 {[%emt 0:03:34]} 15. Bg3 {[%emt 0:02:44]} Nxg3 {[%emt 0:01:25]} 16. fxg3 {[%emt 0:04:24]} g4 {[%emt 0:03:24]} 17. Nfd2 {[%emt 0:00:30]} f5 {[%emt 0:01:14]} 18. Nc5 {[%emt 0:00:53]} Bg5 {[%emt 0:03:56]} 19. Re1 {[%emt 0:06:38]} Nd8 {[%emt 0:05:41][%cal Bc6d8,Bd8f7,Bf7d6][%mdl 32]} 20. Nxd7 {[%emt 0:11:27]} Qxd7 {[%emt 0:00:05]} 21. Qc2 {[%emt 0:00:40]} Rf7 {[%emt 0:05:55][%cal Bf8f7,Bf7e7,Be7e8][%mdl 32]} 22. Nf1 {[%emt 0:04:46]} Re7 {[%emt 0:03:30]} 23. Qc5 {[%emt 0:07:47]} Nf7 {[%emt 0:01:28] Black is better.} 24. Rc2 {[%emt 0:00:25]} Nd6 {[%emt 0:02:13]} 25. Rec1 {[%emt 0:00:10]} Ree8 {[%emt 0:08:42] Weighted Error Value: White=0.10 (very precise) /Black=0.05 (flawless)} 1/2-1/2

[Event "1000GM 0003 GM Norm 2022"]
[Site "Saint Louis"]
[Date "2022.09.24"]
[Round "6.3"]
[White "Chandra, Akshat"]
[Black "Tugstumur, Yesuntumur"]
[Result "1-0"]
[ECO "A43"]
[WhiteElo "2471"]
[BlackElo "2375"]
[Annotator "TA"]
[PlyCount "28"]
[EventDate "2022.09.21"]
[EventType "tourn"]
[EventCountry "USA"]
[SourceTitle "playchess.com"]
[Source "ChessBase"]
[SourceQuality "1"]
[TimeControl "5400+30"]

{[%evp 16,28,29,36,53,60,75,0,78,64,62,42,50,54,46]} 1. d4 {[%emt 0:03:04]} Nf6 {[%emt 0:00:05]} 2. Nf3 {[%emt 0:00:09]} c5 {[%emt 0:00:33]} 3. d5 {[%emt 0:02:34]} g6 {[%emt 0:01:02]} 4. Nc3 {[%emt 0:00:52]} d6 {[%emt 0:01:06]} 5. e4 {[%emt 0:00:59]} Bg4 {[%emt 0:06:26]} 6. Be2 {[%emt 0:03:57]} Bg7 {[%emt 0:04:50]} 7. O-O {[%emt 0:00:55]} O-O {[%emt 0:00:37]} 8. Nd2 {[%emt 0:04:53]} Bxe2 {[%emt 0:05:53]} 9. Qxe2 {[%emt 0:00:06]} Re8 {[%emt 0:01:15] A43: Schmid Benoni.} 10. Nc4 {[%emt 0:00:25]} Nbd7 {[%emt 0:03:23]} 11. f4 {[%emt 0:12:28] [#]} (11. a4 $16) 11... b5 $146 {[%emt 0:20:22]} (11... Nb6 $11 {remains equal.}) ({Predecessor:} 11... Nb6 12. Nxb6 Qxb6 13. e5 dxe5 14. fxe5 Nd7 15. Na4 Qa6 16. Qxa6 bxa6 17. e6 fxe6 18. dxe6 {0-1 (56) Cerne,P (1363)-Sampaio Vianna Braga,C (1349) LSS email 2016}) 12. Nxb5 $16 {[%emt 0:01:34]} Nb6 {[%emt 0:00:05] White is slightly better.} 13. Nxb6 {[%emt 0:26:09] White is more active.} Qxb6 {[%emt 0:00:16]} 14. c4 {[%emt 0:00:06]} e6 {[%emt 0:02:00] Weighted Error Value: White=0.15 (very precise) /Black=0.29 (precise)} 1-0

[Event "1000GM 0003 GM Norm 2022"]
[Site "Saint Louis"]
[Date "2022.09.24"]
[Round "6.4"]
[White "Kretchetov, Alexandre"]
[Black "Stearman, Josiah"]
[Result "0-1"]
[ECO "D45"]
[WhiteElo "2144"]
[BlackElo "2387"]
[Annotator "TA"]
[PlyCount "120"]
[EventDate "2022.09.21"]
[EventType "tourn"]
[EventCountry "USA"]
[SourceTitle "playchess.com"]
[Source "ChessBase"]
[SourceQuality "1"]
[TimeControl "5400+30"]

{[%evp 23,120,0,0,-2,0,0,0,0,0,-7,0,-44,-41,-56,-46,-29,-24,-90,-41,-74,-75,-106,-33,-30,-32,-22,27,37,64,66,66,0,0,0,0,0,0,0,12,0,0,0,0,0,0,0,-6,-5,-4,-49,-34,-34,-19,-19,-7,-7,-8,-19,-16,-60,-41,-43,-43,-58,-7,0,0,0,0,0,0,-32,-59,-59,-59,-141,-51,-69,-69,-446,-418,-402,-395,-1216,-1186,-4810,-1000,-29973,-29974,-29985,-29968,-29989,-29986,-29989,-29990,-29991,-29992,-29994,-29995]} 1. Nf3 {[%emt 0:00:07]} d5 {[%emt 0:00:11]} 2. d4 {[%emt 0:00:18]} Nf6 {[%emt 0:00:05]} 3. c4 {[%emt 0:00:04]} e6 {[%emt 0:00:03]} 4. Nc3 {[%emt 0:00:40]} c6 {[%emt 0:00:14]} 5. e3 {[%emt 0:00:19]} Nbd7 {[%emt 0:00:06]} 6. Qc2 {[%emt 0:00:11]} Bd6 {[%emt 0:00:05]} 7. b3 {[%emt 0:00:05]} O-O {[%emt 0:00:05]} 8. Be2 {[%emt 0:00:03]} b6 {[%emt 0:00:04]} 9. O-O {[%emt 0:00:11]} Bb7 {[%emt 0:00:04]} 10. Bb2 {[%emt 0:00:04]} Qe7 {[%emt 0:00:05]} 11. Rad1 {[%emt 0:00:04]} Rad8 {[%emt 0:00:05]} 12. Rfe1 {[%emt 0:00:04]} Rfe8 {[%emt 0:00:04]} 13. g3 {[%emt 0:01:27] D45: Semi-Slav: 5 e3.} c5 {[%emt 0:03:33]} 14. cxd5 {[%emt 0:05:12]} exd5 {[%emt 0:08:14]} 15. dxc5 {[%emt 0:10:42] The position is equal.} bxc5 {[%emt 0:00:00] [#]} 16. Nh4 $146 {[%emt 0:00:37]} ({Predecessor:} 16. Bf1 Bc7 17. Bg2 Ba5 18. Rc1 Ng4 19. h3 Nge5 20. Nh4 Nf6 21. Nf5 Qe6 22. g4 {½-½ (35) Jonckheere,P (2322)-Laffranchise,L (2403) ICCF email 2015}) 16... Qe6 {[%emt 0:00:00]} 17. Qb1 {[%emt 0:09:22]} Ne5 {[%emt 0:01:46][%cal Od5d4,Bd7e5,Be5g4,Bg4f6][%mdl 32]} 18. Qf5 {[%emt 0:06:00]} Qe7 {[%emt 0:12:59][%cal Od5d4]} 19. Nb5 {[%emt 0:04:08] Against d4} Bb8 {[%emt 0:00:43]} 20. Nf3 {[%emt 0:10:21] [#]} (20. f4 $1 $11 Bc8 21. Qb1 (21. Qg5 Ng6 $11)) 20... Neg4 $1 $17 {[%emt 0:07:20]} 21. Bxf6 {[%emt 0:07:30]} Nxf6 {[%emt 0:00:07]} 22. Nc3 {[%emt 0:00:23]} d4 {[%emt 0:08:36]} (22... Bc7 $17 {...Ba5 is the strong threat.} 23. Bb5 Rf8) 23. exd4 $15 {[%emt 0:02:15]} cxd4 {[%emt 0:00:22]} 24. Bd3 {[%emt 0:07:20]} Qb4 {[%emt 0:05:46]} (24... Qc7 {should be considered.} 25. Rxe8+ Rxe8) 25. Ne4 $11 {[%emt 0:09:50]} Nxe4 {[%emt 0:00:07]} 26. Bxe4 {[%emt 0:00:10]} g6 {[%emt 0:00:29]} 27. Qg5 {[%emt 0:00:04]} (27. Qf6 $1 $14) 27... Bc7 {[%emt 0:04:44]} ({But not} 27... Bxe4 {[#]} 28. Rxe4 $1 Rxe4 29. Qxd8+ Kg7 30. Rxd4 Rxd4 31. Qxd4+ (31. Nxd4 Bd6 $14) 31... Qxd4 32. Nxd4 $16) 28. Bxb7 {[%emt 0:02:12]} Rxe1+ {[%emt 0:00:09]} 29. Nxe1 {[%emt 0:05:18] And now Ba6 would win.} Qxb7 {[%emt 0:00:14]} 30. Qe7 {[%emt 0:02:54] Strongly threatening Rc1.} Qc6 {[%emt 0:01:32] Against Rc1} 31. Qe2 {[%emt 0:01:59]} (31. Nd3 {seems wilder.} Qf3 32. Re1 Bb6 33. Ne5) 31... Ba5 {[%emt 0:01:00]} 32. Nf3 {[%emt 0:01:51][%cal Be1f3,Bf3e5,Be5c4,Bc4d6][%mdl 32]} Bc3 {[%emt 0:02:10]} 33. Qd3 {[%emt 0:00:37]} a5 {[%emt 0:00:34]} 34. Ne5 {[%emt 0:01:36]} Qe6 {[%emt 0:00:36]} 35. Nc4 {[%emt 0:01:43]} a4 {[%emt 0:00:13]} 36. Qc2 {[%emt 0:00:57]} Re8 {[%emt 0:01:24][%cal Bd8e8,Be8e5,Be5h5][%mdl 32]} 37. Qd3 $1 {[%emt 0:02:10]} axb3 {[%emt 0:05:55]} 38. axb3 {[%emt 0:00:04]} Qg4 {[%emt 0:00:05]} 39. Nd6 {[%emt 0:02:55]} Re5 {[%emt 0:01:25]} 40. Nc4 {[%emt 0:02:20]} Rh5 {[%emt 0:01:04] White should prevent ...Qh3.} 41. f3 {[%emt 0:00:54]} Qe6 {[%emt 0:00:35]} 42. Qe4 {[%emt 0:00:59]} Qh3 {[%emt 0:00:46]} 43. Qe2 {[%emt 0:00:16]} Kg7 {[%emt 0:00:11]} (43... Qd7 $15) 44. g4 {[%emt 0:01:50]} Rd5 {[%emt 0:02:58]} 45. Qe4 {[%emt 0:00:41]} Rd8 {[%emt 0:00:01]} 46. Qe5+ {[%emt 0:00:30]} Kg8 {[%emt 0:00:06]} 47. Qe4 {[%emt 0:01:09]} Qh4 {[%emt 0:00:35]} 48. Rd3 {[%emt 0:00:33]} Qg5 {[%emt 0:00:54]} 49. Rd1 {[%emt 0:00:24] Prevents Qc1.} (49. Kg2 $15) 49... d3 {[%emt 0:01:46]} (49... Qb5 $17 50. Qb1 Rb8) 50. Kg2 {[%emt 0:00:24]} d2 {[%emt 0:00:39] aiming for ...Qh4. Black is more active.} 51. Qc2 $2 {[%emt 0:00:27][%mdl 8192] [#] Now White is beyond hope.} (51. Qe3 $15 Qxe3 52. Nxe3) 51... Qe7 $1 $19 {[%emt 0:00:37] Hoping for ...Qe2+.} 52. Qe4 {[%emt 0:00:25] Inhibits Qe2+.} Qh4 {[%emt 0:00:34]} 53. Ne3 $2 {[%emt 0:01:46]} (53. Qe2 Qe1 54. Qf1) 53... Qe1 {[%emt 0:01:01] Threatens to win with ...Bd4.} 54. Kh3 {[%emt 0:02:00]} Qe2 {[%emt 0:01:28]} (54... Kf8 $142 55. Qc4 Qxe3) 55. Kg3 {[%emt 0:00:23]} Bd4 {[%emt 0:00:56] Black mates.} 56. Qe7 {[%emt 0:00:19]} Rf8 {[%emt 0:00:27]} 57. Nf5 {[%emt 0:00:40]} Qf2+ {[%emt 0:00:24]} 58. Kh3 {[%emt 0:00:14]} Qxf3+ {[%emt 0:00:44]} 59. Kh4 {[%emt 0:00:18]} Bf2+ {[%emt 0:00:11]} 60. Kg5 {[%emt 0:00:17]} f6+ {[%emt 0:01:04] Weighted Error Value: White=0.58/Black=0.18 (very precise)} 0-1

[Event "1000GM 0003 GM Norm 2022"]
[Site "Saint Louis"]
[Date "2022.09.24"]
[Round "6.5"]
[White "Mardov, Dimitar"]
[Black "Williams, Justus"]
[Result "1-0"]
[ECO "E80"]
[WhiteElo "2414"]
[BlackElo "2392"]
[Annotator "TA"]
[PlyCount "79"]
[EventDate "2022.09.21"]
[EventType "tourn"]
[EventCountry "USA"]
[SourceTitle "playchess.com"]
[Source "ChessBase"]
[SourceQuality "1"]
[TimeControl "5400+30"]

{[%evp 12,78,41,44,63,59,81,88,89,56,62,51,35,42,45,42,42,22,19,32,18,31,37,22,16,26,10,19,40,41,49,47,76,85,235,224,248,258,389,384,387,395,343,317,373,396,379,370,370,370,370,370,643,626,589,335,354,327,545,541,29964,29966,1788,1570,29991,29991,29997,29998,29999]} 1. d4 {[%emt 0:00:02]} Nf6 {[%emt 0:00:56]} 2. c4 {[%emt 0:00:18]} g6 {[%emt 0:00:52]} 3. f3 {[%emt 0:00:56]} Bg7 {[%emt 0:01:44]} 4. e4 {[%emt 0:00:34]} d6 {[%emt 0:00:32]} 5. Nc3 {[%emt 0:00:36]} a6 {[%emt 0:01:46]} 6. Be3 {[%emt 0:02:50]} Nc6 {[%emt 0:02:55]} 7. Qd2 {[%emt 0:08:40]} Bd7 {[%emt 0:07:46] E80: King's Indian: Sämisch: Lines without early ...0-0.} 8. Bd3 {[%emt 0:03:59]} h5 {[%emt 0:12:51]} 9. Nge2 {[%emt 0:09:50] [#]} h4 $146 {[%emt 0:04:27] White is better.} ({Predecessor:} 9... Kf8 10. h3 Qc8 11. f4 e5 12. fxe5 dxe5 13. d5 Ne7 14. Ng1 c5 15. Nf3 Ne8 {1-0 (25) Capellades Subirana,M (2266)-Lopez Corominas,A (1928) Barcelona 2012}) 10. h3 {[%emt 0:03:31]} Nh5 {[%emt 0:03:46]} 11. d5 {[%emt 0:03:48]} Ne5 {[%emt 0:01:36][%cal Ob7b5]} 12. f4 {[%emt 0:05:18]} Nxd3+ {[%emt 0:01:30]} 13. Qxd3 {[%emt 0:00:05]} b5 {[%emt 0:06:16]} 14. Bd4 {[%emt 0:03:57]} bxc4 {[%emt 0:02:09]} 15. Qxc4 {[%emt 0:02:30]} e5 {[%emt 0:00:13]} 16. dxe6 {[%emt 0:03:18]} Bxe6 {[%emt 0:02:08]} 17. Qd3 {[%emt 0:01:36] [#] f5 is the strong threat.} Bxd4 $1 {[%emt 0:02:33]} 18. Qxd4 {[%emt 0:02:09]} Qf6 {[%emt 0:00:26]} 19. Qe3 {[%emt 0:06:04]} Rb8 {[%emt 0:05:09]} 20. b3 {[%emt 0:02:12]} O-O {[%emt 0:08:00][%cal Od6d5]} 21. O-O {[%emt 0:00:50][%cal Of4f5]} Rfe8 {[%emt 0:02:44]} 22. Rad1 {[%emt 0:05:52]} Bd7 {[%emt 0:07:17] A mistake that costs the game.} (22... Qg7 $16) 23. Nd5 $18 {[%emt 0:07:44]} Qd8 {[%emt 0:00:59] [#]} 24. f5 $1 {[%emt 0:04:38]} Re5 {[%emt 0:06:55]} (24... Bxf5 {was necessary.} 25. Rxf5 gxf5) 25. fxg6 {[%emt 0:08:30]} fxg6 {[%emt 0:00:13]} 26. Nef4 {[%emt 0:00:44] Pair of Knights!} ({Not} 26. Qh6 Qg5 27. Qxg5 Rxg5 $16) 26... Qg5 {[%emt 0:04:15]} 27. Qa7 {[%emt 0:01:17]} ({Less strong is} 27. Nxc7 Bxh3 28. Ncd5 Nxf4 29. Nxf4 Rf8 $14) 27... Nxf4 {[%emt 0:03:00]} 28. Rxf4 {[%emt 0:01:13] The board is on fire.} ({Weaker is} 28. Qxb8+ Re8 29. Qxe8+ Bxe8 $16) 28... Rc8 {[%emt 0:02:59][%cal Oe5d5]} 29. Qf2 {[%emt 0:01:12]} Be6 {[%emt 0:07:18]} 30. Nf6+ {[%emt 0:00:52]} Kg7 {[%emt 0:00:05]} 31. Rxh4 {[%emt 0:00:41] aiming for Rh7+.} Rh8 {[%emt 0:00:07] Inhibits Rh7+.} (31... Qxf6 32. Rh7+ Kxh7 33. Qxf6 Rxe4) 32. Rxh8 {[%emt 0:01:43]} Kxh8 {[%emt 0:00:01]} 33. h4 {[%emt 0:01:39]} Qh6 {[%emt 0:00:04]} 34. Rf1 {[%emt 0:01:13] Strongly threatening Qa7.} Rc5 $2 {[%emt 0:00:32]} (34... Qg7 {keeps fighting.} 35. Qa7 Qe7 36. Qxa6 Kg7) 35. Ne8 {[%emt 0:01:27] Threatening mate with Qf6+.} Bg8 {[%emt 0:00:58]} 36. Qf6+ {[%emt 0:01:34]} Kh7 {[%emt 0:00:02]} 37. Qd8 {[%emt 0:01:05] Intending Nf6+ and mate.} Qe3+ {[%emt 0:03:09]} 38. Kh1 {[%emt 0:00:40] White mates.} Rc1 {[%emt 0:00:44]} 39. Nf6+ {[%emt 0:00:18]} Kh6 {[%emt 0:00:05]} 40. Qf8# {[%emt 0:00:11] Weighted Error Value: White=0.12 (very precise) /Black=0.68} 1-0